Workbook

Sheet Primary Calculator
B3: Non Consumer Investment - Specialist Investment 10 | R3: Created: | T3: =NOW() -> 2023-06-01T10:36:55.230
B4: Version 4.00 1/5/23
B7: Instructions | J7: Cell Index
B8: Insert the relevant details into blank fields in BLUE cells | F8: Blue shaded cells require input | J8: White shaded cells derived from formulas | O8: Light Grey shaded cells applies appropriate scales
B11: Application Name/ Loan No. / Ref: | U11: Resimac Specialist Inv Rate (actual from rate board)
N12: APL post code checker
B13: Preliminary product questions to determine suitability of Non Consumer product | AG13: Yes | AL13: assessment rate
AG14: No
B15: Lending proposed is wholly not for a consumer purposes | N15: Postcode | P15: =IFERROR(VLOOKUP(O15,Tables!U2:X2070,4,FALSE),0) -> 0
B16: Security property offered is not owner occupied and does not involve any self occupation component i.e home and income | U16: 0.0959
B17: Security property offered is residential, fit for a couple / family to reside in i.e not a boarding house, purpose built student accomodation or dilapidated | N17: Group 1-3 Metro densly populated areas | U17: check rate | AK17: 0.095 | AL17: =IF(U16=9.59%,9.75%,U16+0.2%) -> 0.0975
B18: Applicants do not have or will not have any consumer lending with Resimac (can not have this product and consumer product concurrently)
B20: =IF(AND(L15="yes",L16="yes",L17="yes",L18="yes"),"Preliminary pass -within product parameters","no inputs into cell L15- L18 or outside product parameters for a Non consumer product") -> no inputs into cell L15- L18 or outside product parameters for a Non consumer product
B22: Property address | C22: Property Value | D22: Valuation Type | E22: Outstanding Debt/Limits | F22: Additional Lending (excl of any fees) | G22: Total lending | H22: LVR | J22: Existing Lender or N/A | K22: Rental Income Per Week | L22: Insurance Per Annum | M22: Rates Per Annum | N22: Body Corp Per Annum | O22: Maintenance Per annum | P22: APL Location (Group) | R22: Self Service Pass/Fail | S22: Surplus | T22: Max Lend IO at 50% based on inputs | U22: P&I on Remainder Self Service 50-70% | AI22: Rent annual | AJ22: Rent scaled | AK22: Expenses | AL22: Net rent avail for servicing debt | AM22: IO Portion | AN22: P&I | AO22: Annual payment IO | AP22: Annual Payment P&I | AQ22: Self service calc IO + P&I requested | AR22: Max IO net rent avail (not limited to LVR) | AS22: Max Lend IO at 50% based on inputs (lower of) | AT22: left over for P&I after IO | AU22: Left over small amount <$1000pa | AV22: P&I max on remainder calc | AW22: Max P&I based on 50%+20% LVR
B24: 1 Example Street | C24: 1000000 | D24: Full RVR | E24: 500000 | G24: =(E24+F24) -> 500000 | H24: =SUM(G24/C24) -> 0.5 | I24: =IF(H24=0%,"",IF(H24<=60%,"Pass",IF(H24<=70%,"Must be exempt","Fail LVR"))) -> Pass | J24: ABC Bank | K24: 1200 | L24: 1800 | M24: 3500 | N24: 0 | O24: 1000 | P24: Group 1 | R24: =IF(K24="","Fill J27 ",IF(L24="","Fill K27",IF(M24="","Fill L27",IF(N24="","Fill M27",IF(O24="","Fill N27",IF(P24="","Fill O27",IF(AQ24>1,"Pass","Fail"))))))) -> Pass | S24: =AQ24 -> 1110 | T24: =MIN(AR24,(C24*0.5)) -> 500000 | U24: =IF(AU24="0","nil",MIN(AV24,AW24)) -> 10766.39993 | AG24: Group 1 | AI24: =SUM(K24*52) -> 62400 | AJ24: =IF(OR(P24="group 1",P24="Group 2",P24="group 3"),AI24*0.9,AI24*0.9) -> 56160 | AK24: =SUM(L24+M24+N24+O24) -> 6300 | AL24: =SUM(AJ24-AK24) -> 49860 | AM24: =MIN(C24*0.5,G24) -> 500000 | AN24: =SUM(G24-AM24) -> 0 | AO24: =(AM24*$AL$17) -> 48750 | AP24: =-PMT($AL$17/12,(360),AN24,0)*12 -> 0 | AQ24: =SUM(AL24-AO24-AP24) -> 1110 | AR24: =AL24/AL17 -> 511384.6154 | AS24: =MIN(AR24,(C24*0.5)) -> 500000 | AT24: =(AL24-AO24) -> 1110 | AU24: =IF(AT24<1000,"0",AT24) -> 1110 | AV24: =-PV($AL$17/12,360,(AT24/12),0) -> 10766.39993 | AW24: =SUM(C24*0.2) -> 200000
I25: =IF(H25=0%,"",IF(H25<=60%,"Pass",IF(H25<=70%,"Must be exempt","Fail LVR"))) ->  | S25: =AQ25 -> 0 | U25: =IF(AU25="0","nil",MIN(AV25,AW25)) -> 0 | AG25: Group 2
G26: =(E26+F26) -> 0 | H26: =IFERROR(G26/C26,0) -> 0 | I26: =IF(H26=0%,"",IF(H26<=65%,"Pass",IF(H26<=70%,"Must be exempt","Fail LVR"))) ->  | R26: =IF($U$16="","Fill U16",IF(K26="","Fill K26 ",IF(L26="","Fill L26",IF(M26="","Fill M26",IF(N26="","Fill N26",IF(O26="","Fill O26",IF(P26="","Fill P26",IF(AQ26>1,"Pass","Fail")))))))) -> Fill K26 | S26: 0 | T26: =MIN(AR26,(C26*0.5)) -> 0 | U26: nil | AG26: Group 3 | AI26: =SUM(K26*52) -> 0 | AJ26: =IF(OR(P26="group 1",P26="Group 2",P26="group 3"),AI26*0.9,AI26*0.9) -> 0 | AK26: =SUM(L26+M26+N26+O26) -> 0 | AL26: =SUM(AJ26-AK26) -> 0 | AM26: =MIN(C26*0.5,G26) -> 0 | AN26: =SUM(G26-AM26) -> 0 | AO26: =(AM26*$AL$17) -> 0 | AP26: =-PMT($AL$17/12,(360),AN26,0)*12 -> 0 | AQ26: =SUM(AL26-AO26-AP26) -> 0 | AR26: =AL26/0.06 -> 0 | AS26: =MIN(AR26,(C26*0.5)) -> 0 | AT26: =SUM(AL26-AO26) -> 0 | AU26: =IF(AT26<1000,"0",AT26) -> 0 | AV26: =-PV($AL$17/12,360,(AT26/12),0) -> 0 | AW26: =SUM(C26*0.2) -> 0
G27: =(E27+F27) -> 0 | H27: =IFERROR(G27/C27,0) -> 0 | I27: =IF(H27=0%,"",IF(H27<=65%,"Pass",IF(H27<=70%,"Must be exempt","Fail LVR"))) ->  | R27: Fill K26 | S27: 0 | T27: 0 | U27: nil | AG27: Group 4 | AI27: 0 | AJ27: 0 | AK27: 0 | AL27: 0 | AM27: 0 | AN27: 0 | AO27: 0 | AP27: 0 | AQ27: =SUM(AL27-AO27-AP27) -> 0 | AR27: 0 | AS27: 0 | AT27: =SUM(AL27-AO27) -> 0 | AU27: 0 | AV27: =-PV($AL$17/12,360,(AT27/12),0) -> 0 | AW27: 0
G28: 0 | H28: =IFERROR(G28/C28,0) -> 0 | R28: Fill K26 | S28: 0 | T28: 0 | U28: nil | AG28: Group 5 | AI28: 0 | AJ28: 0 | AK28: 0 | AL28: 0 | AM28: 0 | AN28: 0 | AO28: 0 | AP28: 0 | AQ28: 0 | AR28: 0 | AS28: 0 | AT28: 0 | AU28: 0 | AV28: 0 | AW28: 0
G29: 0 | H29: 0 | R29: Fill K26 | S29: 0 | T29: 0 | U29: nil | AI29: 0 | AJ29: 0 | AK29: 0 | AL29: 0 | AM29: 0 | AN29: 0 | AO29: 0 | AP29: 0 | AQ29: 0 | AR29: 0 | AS29: 0 | AT29: 0 | AU29: 0 | AV29: 0 | AW29: 0
G30: 0 | H30: 0 | R30: Fill K26 | S30: 0 | T30: 0 | U30: nil | AG30: AVM/Eval | AI30: 0 | AJ30: 0 | AK30: 0 | AL30: 0 | AM30: 0 | AN30: 0 | AO30: 0 | AP30: 0 | AQ30: 0 | AR30: 0 | AS30: 0 | AT30: 0 | AU30: 0 | AV30: 0 | AW30: 0
G31: 0 | H31: 0 | R31: Fill K26 | S31: 0 | T31: 0 | U31: nil | AG31: Full RVR | AI31: 0 | AJ31: 0 | AK31: 0 | AL31: 0 | AM31: 0 | AN31: 0 | AO31: 0 | AP31: 0 | AQ31: 0 | AR31: 0 | AS31: 0 | AT31: 0 | AU31: 0 | AV31: 0 | AW31: 0
G32: 0 | H32: 0 | R32: Fill K26 | S32: 0 | T32: 0 | U32: nil | AG32: TBC | AI32: 0 | AJ32: 0 | AK32: 0 | AL32: 0 | AM32: 0 | AN32: 0 | AO32: 0 | AP32: 0 | AQ32: 0 | AR32: 0 | AS32: 0 | AT32: 0 | AU32: 0 | AV32: 0 | AW32: 0
G33: 0 | H33: 0 | R33: Fill K26 | S33: 0 | T33: 0 | U33: nil | AI33: 0 | AJ33: 0 | AK33: 0 | AL33: 0 | AM33: 0 | AN33: 0 | AO33: 0 | AP33: 0 | AQ33: 0 | AR33: 0 | AS33: 0 | AT33: 0 | AU33: 0 | AV33: 0 | AW33: 0
G34: 0 | H34: 0 | R34: Fill K26 | S34: 0 | T34: 0 | U34: nil | AI34: 0 | AJ34: 0 | AK34: 0 | AL34: 0 | AM34: 0 | AN34: 0 | AO34: 0 | AP34: 0 | AQ34: 0 | AR34: 0 | AS34: 0 | AT34: 0 | AU34: 0 | AV34: 0 | AW34: 0
G35: 0 | H35: 0 | R35: Fill K26 | S35: 0 | T35: 0 | U35: nil | AI35: 0 | AJ35: 0 | AK35: 0 | AL35: 0 | AM35: 0 | AN35: 0 | AO35: 0 | AP35: 0 | AQ35: 0 | AR35: 0 | AS35: 0 | AT35: 0 | AU35: 0 | AV35: 0 | AW35: 0
G36: 0 | H36: 0 | R36: Fill K26 | S36: 0 | T36: 0 | U36: nil | AI36: 0 | AJ36: 0 | AK36: 0 | AL36: 0 | AM36: 0 | AN36: 0 | AO36: 0 | AP36: 0 | AQ36: 0 | AR36: 0 | AS36: 0 | AT36: 0 | AU36: 0 | AV36: 0 | AW36: 0
G37: 0 | H37: 0 | R37: Fill K26 | S37: 0 | T37: 0 | U37: nil | AI37: 0 | AJ37: 0 | AK37: 0 | AL37: 0 | AM37: 0 | AN37: 0 | AO37: 0 | AP37: 0 | AQ37: 0 | AR37: 0 | AS37: 0 | AT37: 0 | AU37: 0 | AV37: 0 | AW37: 0
G38: 0 | H38: 0 | R38: Fill K26 | S38: 0 | T38: 0 | U38: nil | AI38: 0 | AJ38: 0 | AK38: 0 | AL38: 0 | AM38: 0 | AN38: 0 | AO38: 0 | AP38: 0 | AQ38: 0 | AR38: 0 | AS38: 0 | AT38: 0 | AU38: 0 | AV38: 0 | AW38: 0
G39: 0 | H39: 0 | R39: Fill K26 | S39: 0 | T39: 0 | U39: nil | AI39: 0 | AJ39: 0 | AK39: 0 | AL39: 0 | AM39: 0 | AN39: 0 | AO39: 0 | AP39: 0 | AQ39: 0 | AR39: 0 | AS39: 0 | AT39: 0 | AU39: 0 | AV39: 0 | AW39: 0
G40: 0 | H40: 0 | R40: Fill K26 | S40: 0 | T40: 0 | U40: nil | AI40: 0 | AJ40: 0 | AK40: 0 | AL40: 0 | AM40: 0 | AN40: 0 | AO40: 0 | AP40: 0 | AQ40: 0 | AR40: 0 | AS40: 0 | AT40: 0 | AU40: 0 | AV40: 0 | AW40: 0
C42: =SUM(C26:C40) -> 0 | F42: Total | G42: =SUM(G26:G40) -> 0 | H42: =IFERROR(G42/C42,"") ->  | K42: =SUM(K26:K40) -> 0 | L42: =SUM(L26:L40) -> 0 | M42: =SUM(M26:M40) -> 0 | N42: =SUM(N26:N40) -> 0 | O42: =SUM(O26:O40) -> 0 | R42: =IF(S42=0,"",IF(S42>0,"Pass","Fail")) ->  | S42: =SUM(S26:S40) -> 0 | T42: =SUM(T26:T40) -> 0 | U42: =SUM(U26:U40) -> 0 | AI42: =SUM(AI26:AI40) -> 0 | AJ42: 0 | AK42: 0 | AL42: 0 | AM42: 0 | AN42: 0 | AO42: 0 | AP42: 0 | AQ42: 0 | AR42: 0 | AT42: =SUM(AT26:AT40) -> 0 | AV42: =SUM(AV26:AV40) -> 0 | AW42: =SUM(AW26:AW40) -> 0
AN43: NSR Calc | AO43: =SUM(AO42+AP42) -> 0
Q44: Frequency Converter
L45: Fee calculation
L46: =SUM(G42*0.015) -> 0 | P46: Amount | T46: Monthly | U46: Annually
R47: Weekly | T47: =P47*52/12 -> 0 | U47: =P47*52 -> 0
R48: Fortnightly | T48: =P48*26/12 -> 0 | U48: =P48*26 -> 0
L49: NSR | M49: =IF(ISERROR(AL42/AO43),"",AL42/AO43) ->  | R49: 4 weekly | T49: =P49*13/12 -> 0 | U49: =P49*13 -> 0
R50: Monthly | U50: =P50*12 -> 0
R51: Quarterly | T51: =P51*4/12 -> 0 | U51: =P51*4 -> 0
R52: Annually | T52: =P52/12 -> 0
L115: 1

Sheet Personal + Additional Incomes
B1: 2. PERSONAL + ADDITIONAL INCOME WORKSHEET
B3: Note: All figures are to be entered at 100% and calculator will reduce assessment percentage where appropriate
B5: Income: Other
O6: 1 | P6: 2
B7: Incomes Support: | O7: 0 | P7: 1 | Q7: 2 | R7: 3 | S7: 4 | T7: 5
B8: Number of Single Adults
B9: Number of Dependent Children
B11: PAYE
C12: Base income PAYE | D12: Self Employed Income | E12: Investment Income (non property) | F12: Overtime / Shift Allowance | G12: Bonus / Commission / Casual / 2nd Job | H12: Non Taxable Income | I12: Total allowable Supplementary Income | J12: Taxable Income | K12: Tax Applied (Including ACC) | L12: Total Net Borrower Income After Tax
B13: Individual Applicant 1 | D13: =MIN(L25,Tables!D62) -> 0 | I13: =SUM(E13*Tables!D43)+(AUTO_OvertimeShiftAllowances*Tables!A43)+(AUTO_Bonus*Tables!B43) -> 0 | J13: =C13+D13+I13 -> 0 | K13: =Tables!C$36+Tables!C$37+Tables!C$38 -> 0 | L13: =SUM(Tables!C$39) -> 0
B14: Individual Applicant 2 | D14: =MIN(L26,Tables!D63) -> 0 | I14: =SUM(E14*Tables!D43)+(AUTO_OvertimeShiftAllowances2*Tables!A43)+(AUTO_Bonus3*Tables!B43) -> 0 | J14: =C14+D14+I14 -> 0 | K14: =Tables!D$36+Tables!D$37+Tables!D$38 -> 0 | L14: =SUM(Tables!D$39) -> 0
B15: Individual Applicant 3 | D15: =MIN(L27,Tables!D64) -> 0 | I15: =SUM(E15*Tables!D43)+(AUTO_OvertimeShiftAllowances3*Tables!A43)+(AUTO_Bonus3*Tables!B43) -> 0 | J15: =C15+D15+I15 -> 0 | K15: =Tables!E$36+Tables!E$37+Tables!E$38 -> 0 | L15: =SUM(Tables!E$39) -> 0
B16: Individual Applicant 4 | D16: =MIN(L28,Tables!D65) -> 0 | I16: =SUM(E16*Tables!D43)+(AUTO_OvertimeShiftAllowances3*Tables!A43)+(AUTO_Bonus3*Tables!B43) -> 0 | J16: =C16+D16+I16 -> 0 | K16: =Tables!F$36+Tables!F$37+Tables!F$38 -> 0 | L16: =SUM(Tables!F$39) -> 0 | R16: Max Depreciation that can be used company income less tax paid | S16: Tax
B17: Totals for Individuals | C17: =SUM(C13:C16) -> 0 | D17: =SUM(D13:D16) -> 0 | E17: 0 | F17: 0 | G17: 0 | H17: 0 | I17: 0 | J17: 0 | K17: 0 | L17: 0 | R17: =SUM(T17*20%) -> 0 | T17: =SUM(I61-S17) -> 0
T18: =SUM(V18*20%) -> 0 | U18: =SUM(I62*0.28) -> 0 | V18: =SUM(I62-U18) -> 0
B19: Self Employed | T19: =SUM(V19*20%) -> 0 | U19: =SUM(I64*0.28) -> 0 | V19: =SUM(I64-U19) -> 0
B21: Most Recent Year
B22: Financial Year End dd/mm/yyyy
C24: Net Profit Before Tax | D24: Shareholder Salary* | E24: Director Fees* | F24: Wages / Salary* | G24: Home Office | H24: One off / Significant Item | I24: Interest* | J24: Depreciation *** | K24: Allowable % Depn Addback | L24: Total Income | O24: Total
B25: Individual Applicant 1 | K25: =IF(J25<P25,J25,P25) -> 0 | L25: =SUM(C25:I25)+K25 -> 0 | O25: =SUM(C$25:I$25) -> 0 | P25: =SUM(O25*20%) -> 0
B26: Individual Applicant 2 | K26: =IF(J26<P26,J26,P26) -> 0 | L26: =SUM(C26:I26)+K26 -> 0 | O26: =SUM(C$26:I$26) -> 0 | P26: =SUM(O26*20%) -> 0 | Q26: =SUM(F70-P26) -> 0
B27: Individual Applicant 3 | K27: =IF(J27<P27,J27,P27) -> 0 | L27: =SUM(C27:I27)+K27 -> 0 | O27: =SUM(C27:I27) -> 0 | P27: =SUM(O27*20%) -> 0 | Q27: =SUM(S27*20%) -> 0 | R27: =SUM(F71*0.28) -> 0
B28: Individual Applicant 4 | K28: =IF(J28<P28,J28,P28) -> 0 | L28: =SUM(C28:I28)+K28 -> 0 | O28: =SUM(C28:I28) -> 0 | P28: =SUM(O28*20%) -> 0 | Q28: =SUM(S28*20%) -> 0 | R28: =SUM(F73*0.28) -> 0
F30: *paid to applicants | H30: *not all asset depreciation is suitable for addback i.e core business assets -taxi drivers vehicle | K30: *Where being refinanced or repaid
B31: Year Prior
B32: Financial Year End dd/mm/yyyy
C34: Net Profit Before Tax | D34: Shareholder Salary* | E34: Director Fees* | F34: Wages / Salary* | G34: Home Office | H34: One off / Significant Item | I34: Interest* | J34: Depreciation | K34: Allowable % Depn Addback | L34: Total Income
B35: Individual Applicant 1 | K35: =IF(J35<P35,J35,P35) -> 0 | L35: =SUM(C35:I35)+K35 -> 0 | O35: =SUM(C$35:I$35) -> 0 | P35: =SUM(O35*20%) -> 0
B36: Individual Applicant 2 | K36: =IF(J36<P36,J36,P36) -> 0 | L36: =SUM(C36:I36)+K36 -> 0 | O36: =SUM(C$36:I$36) -> 0 | P36: =SUM(O36*20%) -> 0 | Q36: =SUM(F82-P36) -> 0
B37: Individual Applicant 3 | K37: =IF(J37<P37,J37,P37) -> 0 | L37: =SUM(C37:I37)+K37 -> 0 | O37: =SUM(C37:I37) -> 0 | P37: =SUM(O37*20%) -> 0 | Q37: =SUM(S37*20%) -> 0
B38: Individual Applicant 4 | K38: =IF(J38<P38,J38,P38) -> 0 | L38: =SUM(C38:I38)+K38 -> 0 | O38: =SUM(C38:I38) -> 0 | P38: =SUM(O38*20%) -> 0 | Q38: =SUM(S38*20%) -> 0
B41: MONTHLY LIVING EXPENSES | E41: MONTHLY FINANCIAL EXPENSES
D43: Customer Estimated | G43: Limit / Balance | H43: Repayment
B44: Utilities | F44: Other Mortgages - Owner Occupied | I44: per month
B45: Rates | F45: Other Mortgages - Investment | G45: ='Investment Portfolio Summary'!D31 -> 0 | H45: ='Investment Portfolio Summary'!I31 -> 0 | I45: per month
B46: Property Maintenance | F46: Personal Loans | I46: per month | P46: =H44 -> 0
B47: Food & Takeaways | F47: Credit Cards Limit | H47: =SUM(G47*0.038) -> 0 | I47: per month | P47: =H45 -> 0
B48: Transport | F48: Other debts | I48: per month | P48: 1
B49: Clothing and Footwear | F49: Total | H49: =SUM(H44:H48) -> 0 | P49: 1
B50: Personal Care | P50: 1
B51: Childcare | G51: Financial Expenses Buffered | H51: =SUM(H49*1.2) -> 0 | I51: per month | P51: 1
B52: Insurances
B53: Communications | G53: Annualised | H53: =SUM(H51*12) -> 0
B54: Medical and Health
B55: Education and Schooling
B56: Recreation and Entertainment
B57: Regular Savings
B58: Body Corp Fees
B59: Tithings
B60: Child Maintenance
B61: All Other Regular Expenses
B63: Rent or Board Paid
B65: Total Monthly Expenses | D65: =SUM(D44:D61)+D63 -> 0
B67: Annualised | D67: =D65*12 -> 0
B71: Taxable Income | D71: =J17 -> 0
B72: Tax Applicable | D72: =K17 -> 0
B73: Net Cash After Tax | D73: =D71-D72 -> 0
B74: Tax Free Income | D74: =H17 -> 0
B75: Other Rental Income | D75: ='Investment Portfolio Summary'!R31 -> 0
B76: Living Expenses (as per scales) | D76: =MAX(D67,Tables!B26) -> 10614.98984
B77: Total Financial Expense | D77: =H51*12 -> 0
B78: Surplus Cash after Financial Expense | D78: =D73+D74+D75-D76-D77 -> -10614.98984
B80: Net Service Ratio (NSR) | D80: =IF(ISERROR(D73+D74+D75)/(D76+78),0,(D73+D74+D75)/(D76+D77)) -> 0 | F80: Minimum NSR = 1.00
B82: =IF(D80<=1,"Fail - based on inputs existing commitments / lifestyle ","Preliminary pass based on existing commitments / lifestyle") -> Fail - based on inputs existing commitments / lifestyle
B87: Primary Income Total | D87: ='Primary Calculator'!S42 -> 0
B88: Personal + Additional Total | D88: =D78 -> -10614.98984
B90: Overall Position Total | D90: =SUM(D87+D88) -> -10614.98984 | F90: Overall NSR | G90: =IF(ISERROR(D73+D74+D75+'Primary Calculator'!AL42)/(D76+78+'Primary Calculator'!AO43),0,(D73+D74+D75+'Primary Calculator'!AL42)/(D76+D77+'Primary Calculator'!AO43)) -> 0
B92: =IF(D90>1,"Preliminary Pass Overall affordability Pass Primary + Personal + Additional", "Fail based on overall Primary + Personal + Additional") -> Fail based on overall Primary + Personal + Additional
A95: Where there is a reliance on Personal income + Additional (D88) to support lending over an above primary income (D87) these other incomes need to be verified so supporting documents payslips, IRD confo, financials etc should accompany submission
A98: Where deal self services no additional verification is required (D87)

Sheet Investment Portfolio Summary
B2: 3. Investment Property Summary | D2: do not include Resimac offered security (first tab property/ies)
B3: Property Address | C3: Value | D3: Outstanding Debt/Limits | F3: Lender | G3: Term (yrs) | H3: Rate (%) | I3: Repayment Amount Per Month | J3: Rental Income Per Week | K3: Insurance Per Annum | L3: Rates Per Annum | M3: Body Corp Per Annum | N3: APL Location (Group) | P3: Scaled Rent | Q3: Expenses | R3: Surplus
E4: LVR | S4: GV | U4: Group1
E5: =IF(ISERROR(D5/C5),0,(D5/C5)) -> 0 | P5: =IF(OR(N5="group1",N5="group2",N5="group3"),J5*Tables!$H$43*52,J5*Tables!$H$43*52) -> 0 | Q5: =SUM(K5+L5+M5) -> 0 | R5: =SUM(P5-Q5) -> 0 | S5: MV | U5: Group2
E6: =IF(ISERROR(D6/C6),0,(D6/C6)) -> 0 | P6: =IF(OR(N6="group1",N6="group2",N6="group3"),J6*Tables!$H$43*52,J6*Tables!$H$43*52) -> 0 | Q6: =SUM(K6+L6+M6) -> 0 | R6: =SUM(P6-Q6) -> 0 | S6: Estimate | U6: Group3
E7: 0 | P7: =IF(OR(N7="group1",N7="group2",N7="group3"),J7*Tables!$H$43*52,J7*Tables!$H$43*52) -> 0 | Q7: 0 | R7: 0 | S7: PP | U7: Group4
E8: 0 | P8: =IF(OR(N8="group1",N8="group2",N8="group3"),J8*Tables!$H$43*52,J8*Tables!$H$43*52) -> 0 | Q8: 0 | R8: 0 | U8: Group5
E9: 0 | P9: =IF(OR(N9="group1",N9="group2",N9="group3"),J9*Tables!$H$43*52,J9*Tables!$H$43*52) -> 0 | Q9: 0 | R9: 0 | S9: =SUM(I31*12) -> 0
E10: 0 | P10: =IF(OR(N10="group1",N10="group2",N10="group3"),J10*Tables!$H$43*52,J10*Tables!$H$43*52) -> 0 | Q10: 0 | R10: 0 | S10: =SUM(J31*52) -> 0
E11: 0 | P11: =IF(OR(N11="group1",N11="group2",N11="group3"),J11*Tables!$H$43*52,J11*Tables!$H$43*52) -> 0 | Q11: 0 | R11: 0
E12: 0 | P12: =IF(OR(N12="group1",N12="group2",N12="group3"),J12*Tables!$H$43*52,J12*Tables!$H$43*52) -> 0 | Q12: 0 | R12: 0 | S12: Scaled Rent
E13: 0 | P13: =IF(OR(N13="group1",N13="group2",N13="group3"),J13*Tables!$H$43*52,J13*Tables!$H$43*52) -> 0 | Q13: 0 | R13: 0 | S13: =SUM(J31*52)*0.8 -> 0
E14: 0 | P14: =IF(OR(N14="group1",N14="group2",N14="group3"),J14*Tables!$H$43*52,J14*Tables!$H$43*52) -> 0 | Q14: 0 | R14: 0
E15: 0 | P15: =IF(OR(N15="group1",N15="group2",N15="group3"),J15*Tables!$H$43*52,J15*Tables!$H$43*52) -> 0 | Q15: 0 | R15: 0
E16: 0 | P16: =IF(OR(N16="group1",N16="group2",N16="group3"),J16*Tables!$H$43*52,J16*Tables!$H$43*52) -> 0 | Q16: 0 | R16: 0
E17: 0 | P17: =IF(OR(N17="group1",N17="group2",N17="group3"),J17*Tables!$H$43*52,J17*Tables!$H$43*52) -> 0 | Q17: 0 | R17: 0
E18: 0 | P18: =IF(OR(N18="group1",N18="group2",N18="group3"),J18*Tables!$H$43*52,J18*Tables!$H$43*52) -> 0 | Q18: 0 | R18: 0
E19: 0 | P19: =IF(OR(N19="group1",N19="group2",N19="group3"),J19*Tables!$H$43*52,J19*Tables!$H$43*52) -> 0 | Q19: 0 | R19: 0
E20: 0 | P20: =IF(OR(N20="group1",N20="group2",N20="group3"),J20*Tables!$H$43*52,J20*Tables!$H$43*52) -> 0 | Q20: 0 | R20: 0
E21: 0 | P21: =IF(OR(N21="group1",N21="group2",N21="group3"),J21*Tables!$H$43*52,J21*Tables!$H$43*52) -> 0 | Q21: 0 | R21: 0
E22: 0 | P22: =IF(OR(N22="group1",N22="group2",N22="group3"),J22*Tables!$H$43*52,J22*Tables!$H$43*52) -> 0 | Q22: 0 | R22: 0
E23: 0 | P23: =IF(OR(N23="group1",N23="group2",N23="group3"),J23*Tables!$H$43*52,J23*Tables!$H$43*52) -> 0 | Q23: 0 | R23: 0
E24: 0 | P24: =IF(OR(N24="group1",N24="group2",N24="group3"),J24*Tables!$H$43*52,J24*Tables!$H$43*52) -> 0 | Q24: 0 | R24: 0
E25: 0 | P25: =IF(OR(N25="group1",N25="group2",N25="group3"),J25*Tables!$H$43*52,J25*Tables!$H$43*52) -> 0 | Q25: 0 | R25: 0
E26: 0 | P26: =IF(OR(N26="group1",N26="group2",N26="group3"),J26*Tables!$H$43*52,J26*Tables!$H$43*52) -> 0 | Q26: 0 | R26: 0
E27: 0 | P27: =IF(OR(N27="group1",N27="group2",N27="group3"),J27*Tables!$H$43*52,J27*Tables!$H$43*52) -> 0 | Q27: 0 | R27: 0
E28: 0 | P28: =IF(OR(N28="group1",N28="group2",N28="group3"),J28*Tables!$H$43*52,J28*Tables!$H$43*52) -> 0 | Q28: 0 | R28: 0
E29: 0 | P29: =IF(OR(N29="group1",N29="group2",N29="group3"),J29*Tables!$H$43*52,J29*Tables!$H$43*52) -> 0 | Q29: 0 | R29: 0
C31: =SUM(C5:C29) -> 0 | D31: =SUM(D5:D29) -> 0 | E31: =IFERROR(SUM(D31/C31),0) -> 0 | I31: =SUM(I5:I29) -> 0 | J31: =SUM(J5:J29) -> 0 | P31: =SUM(P5:P29) -> 0 | Q31: =SUM(Q5:Q29) -> 0 | R31: =SUM(R5:R29) -> 0
S33: =SUM(S13-S16)/S9 -> 
K35: Frequency Converter
J37: Amount | L37: Monthly | M37: Annually
C38: APL post code checker | K38: Weekly | L38: =J38*52/12 -> 0 | M38: =J38*52 -> 0
K39: Fortnightly | L39: =J39*26/12 -> 0 | M39: =J39*26 -> 0
C40: Postcode | E40: =IFERROR(VLOOKUP(D40,Tables!U2:X2070,4,FALSE),0) -> 0 | K40: 4 weekly | L40: =J40*13/12 -> 0 | M40: =J40*13 -> 0
K41: Monthly | M41: =J41*12 -> 0
C42: Group 1-3 Metro densly populated areas | K42: Quarterly | L42: =J42*4/12 -> 0 | M42: =J42*4 -> 0
K43: Annually | L43: =J43/12 -> 0

Sheet Tables (hidden)
U1: Postcode | V1: TownCity | W1: Suburb | X1: New Group
U2: 110 | V2: WHANGAREI | W2: ABBEY CAVES | X2: Group3
A3: Living Expenses (Annual) | E3: 10 | F3: 11 | G3: 12 | H3: 13 | I3: 14 | J3: 15 | K3: 20 | L3: 21 | M3: 22 | N3: 23 | O3: 24 | P3: 25 | U3: 110 | V3: WHANGAREI | W3: AVENUES | X3: Group3
D4: Adults | E4: 1 | F4: 1 | G4: 1 | H4: 1 | I4: 1 | J4: 1 | K4: 2 | L4: 2 | M4: 2 | N4: 2 | O4: 2 | P4: 2 | U4: 110 | V4: WHANGAREI | W4: HORAHORA | X4: Group3
A5: Year | B5: Pre-tax monthly income | C5: annualised | D5: Dependants | E5: 0 | F5: 1 | G5: 2 | H5: 3 | I5: 4 | J5: 5 | K5: 0 | L5: 1 | M5: 2 | N5: 3 | O5: 4 | P5: 5 | U5: 110 | V5: WHANGAREI | W5: MAUNU | X5: Group3
A6: 2021 | B6: 1000 | C6: =SUM(B6*12) -> 12000 | E6: 500.2537353 | F6: 723.3937309 | G6: 932.3180739 | H6: 1131.493146 | I6: 1323.323166 | J6: 1509.301708 | K6: 884.582487 | L6: 1085.768112 | M6: 1279.153718 | N6: 1466.392872 | O6: 1648.587871 | P6: 1826.522933 | U6: 110 | V6: WHANGAREI | W6: MORNINGSIDE | X6: Group3
A7: 2021 | B7: 2000 | C7: =SUM(B7*12) -> 24000 | E7: 614.5472082 | F7: 888.6682225 | G7: 1145.32572 | H7: 1390.00652 | I7: 1625.664137 | J7: 1854.133384 | K7: 1086.683935 | L7: 1333.834642 | M7: 1571.403252 | N7: 1801.421124 | O7: 2025.242396 | P7: 2243.83046 | U7: 110 | V7: WHANGAREI | W7: ONERAHI | X7: Group3
A8: 2021 | B8: 3000 | C8: 36000 | E8: 693.1550175 | F8: 1002.339331 | G8: 1291.826338 | H8: 1567.804688 | I8: 1833.605683 | J8: 2091.298831 | K8: 1225.68358 | L8: 1504.447766 | M8: 1772.404193 | N8: 2031.844053 | O8: 2284.294697 | P8: 2530.842743 | U8: 110 | V8: WHANGAREI | W8: PORT WHANGAREI | X8: Group3
A9: 2021 | B9: 4000 | C9: 48000 | E9: 754.9534255 | F9: 1091.703143 | G9: 1406.999436 | H9: 1707.582705 | I9: 1997.081254 | J9: 2277.749099 | K9: 1334.959705 | L9: 1638.577181 | M9: 1930.42333 | N9: 2212.993615 | O9: 2487.951559 | P9: 2756.480657 | U9: 110 | V9: WHANGAREI | W9: RAUMANGA | X9: Group3
A10: 2021 | B10: 5000 | C10: 60000 | E10: 806.6576099 | F10: 1166.470167 | G10: 1503.360027 | H10: 1824.529218 | I10: 2133.854535 | J10: 2433.744363 | K10: 1426.38654 | L10: 1750.797741 | M10: 2062.631437 | N10: 2364.553998 | O10: 2658.342873 | P10: 2945.262613 | U10: 110 | V10: WHANGAREI | W10: WHANGAREI | X10: Group3
A11: 2021 | B11: 6000 | C11: 72000 | E11: 851.5208399 | F11: 1231.344803 | G11: 1586.971198 | H11: 1926.002598 | I11: 2252.531413 | J11: 2569.099974 | K11: 1505.716738 | L11: 1848.170456 | M11: 2177.347157 | N11: 2496.061503 | O11: 2806.189799 | P11: 3109.066924 | U11: 110 | V11: WHANGAREI | W11: WOODHILL | X11: Group3
A12: 2021 | B12: 7000 | C12: 84000 | E12: 891.3932886 | F12: 1289.002503 | G12: 1661.281097 | H12: 2016.187637 | I12: 2358.006158 | J12: 2689.398036 | K12: 1576.221898 | L12: 1934.711006 | M12: 2279.301401 | N12: 2612.93954 | O12: 2937.589588 | P12: 3254.648929 | U12: 112 | V12: WHANGAREI | W12: KAMO | X12: Group3
A13: 2021 | B13: 8000 | C13: 96000 | E13: 927.4383922 | F13: 1341.125656 | G13: 1728.458009 | H13: 2097.715839 | I13: 2453.356412 | J13: 2798.148721 | K13: 1639.959288 | L13: 2012.944553 | M13: 2371.469085 | N13: 2718.598487 | O13: 3056.376348 | P13: 3386.256559 | U13: 112 | V13: WHANGAREI | W13: KAMO | X13: Group3
A14: 2021 | B14: 9000 | C14: 108000 | E14: 960.4403613 | F14: 1388.848273 | G14: 1789.963462 | H14: 2172.360962 | I14: 2540.65665 | J14: 2897.718049 | K14: 1698.315602 | L14: 2084.573175 | M14: 2455.855444 | N14: 2815.3371 | O14: 3165.134449 | P14: 3506.753117 | U14: 112 | V14: WHANGAREI | W14: KENSINGTON | X14: Group3
A15: 2021 | B15: 10000 | C15: 120000 | E15: 990.9554835 | F15: 1432.974776 | G15: 1846.834201 | H15: 2241.38124 | I15: 2621.378422 | J15: 2989.78438 | K15: 1752.274504 | L15: 2150.804258 | M15: 2533.882912 | N15: 2904.786023 | O15: 3265.697137 | P15: 3618.169717 | U15: 112 | V15: WHANGAREI | W15: OTANGAREI | X15: Group3
A16: 2021 | B16: 12500 | C16: 150000 | E16: 1058.822644 | F16: 1531.11433 | G16: 1973.317575 | H16: 2394.885794 | I16: 2800.907687 | J16: 3194.544512 | K16: 1872.281807 | L16: 2298.105504 | M16: 2707.419907 | N16: 3103.724907 | O16: 3489.353592 | P16: 3865.965817 | U16: 112 | V16: WHANGAREI | W16: PARAHAKI | X16: Group3
A17: 2021 | B17: 15000 | C17: 180000 | E17: 1117.710334 | F17: 1616.269088 | G17: 2083.065997 | H17: 2528.080238 | I17: 2956.683526 | J17: 3372.212935 | K17: 1976.411004 | L17: 2425.917396 | M17: 2857.996311 | N17: 3276.342288 | O17: 3683.418175 | P17: 4080.97614 | U17: 112 | V17: WHANGAREI | W17: REGENT | X17: Group3
A18: 2021 | B18: 20000 | C18: 240000 | E18: 1217.360077 | F18: 1760.367961 | G18: 2268.782265 | H18: 2753.471861 | I18: 3220.287381 | J18: 3672.863418 | K18: 2152.618419 | L18: 2642.200665 | M18: 3112.801683 | N18: 3568.4454 | O18: 4011.814239 | P18: 4444.816583 | U18: 112 | V18: WHANGAREI | W18: RIVERSIDE | X18: Group3
A19: 2021 | B19: 25000 | C19: 300000 | E19: 1300.732916 | F19: 1880.929557 | G19: 2424.163421 | H19: 2942.047754 | I19: 3440.833877 | J19: 3924.405303 | K19: 2300.04391 | L19: 2823.155974 | M19: 3325.98685 | N19: 3812.836051 | O19: 4286.569709 | P19: 4749.226906 | U19: 112 | V19: WHANGAREI | W19: TIKIPUNGA | X19: Group3
A20: 2021 | B20: 1000000 | C20: =SUM(B20*12) -> 12000000 | E20: =E19*1.05 -> 1365.769561 | F20: =F19*1.05 -> 1974.976035 | G20: 2545.371592 | H20: 3089.150142 | I20: 3612.875571 | J20: 4120.625568 | K20: 2415.046106 | L20: 2964.313773 | M20: 3492.286193 | N20: 4003.477853 | O20: 4500.898194 | P20: 4986.688252 | U20: 112 | V20: WHANGAREI | W20: WHANGAREI HEADS | X20: Group3
U21: 112 | V21: WHANGAREI | W21: WHAU VALLEY | X21: Group3
A22: Adults | B22: ='Personal + Additional Incomes'!D8 -> 0 | C22: =IF(B22=1,"10","20") -> 20 | D22: Gross income | E22: =SUM('Personal + Additional Incomes'!J17) -> 0 | U22: 114 | V22: HIKURANGI | W22: HIKURANGI | X22: Group5
A23: Dependants | B23: ='Personal + Additional Incomes'!D9 -> 0 | C23: =B23 -> 0 | D23: Roundup 000's | E23: =ROUNDUP(E22,-3) -> 0 | M23: Adults | O23: 1 | P23: 2 | U23: 116 | V23: RUAKAKA | W23: RUAKAKA | X23: Group3
C24: =SUM(C22+C23) -> 20 | M24: Dependants | N24: 0 | O24: 1 | P24: 2 | Q24: 3 | R24: 4 | S24: 5 | U24: 118 | V24: ONE TREE POINT | W24: ONE TREE POINT | X24: Group3
A25: Income banded expense | B25: =_xlfn.XLOOKUP(C24,E3:P3,_xlfn.XLOOKUP(E23,C6:C20,E6:P20,,1)) -> 884.582487 | U25: 170 | V25: WHANGAREI | W25: OTAIKA | X25: Group5
A26: annualised | B26: =SUM(B25*12) -> 10614.98984 | U26: 171 | V26: WHANGAREI | W26: OAKLEIGH | X26: Group5
U27: 171 | V27: WHANGAREI | W27: RUAKAKA | X27: Group3
U28: 172 | V28: WHANGAREI | W28: PARAKAO | X28: Group5
C29: Applicant 1 | D29: Applicant 2 | E29: Applicant 3 | F29: Applicant 4 | U29: 173 | V29: WHANGAREI | W29: KIRIPAKA | X29: Group5
B30: ANNUAL INCOME: | C30: ='Personal + Additional Incomes'!J13 -> 0 | D30: ='Personal + Additional Incomes'!J14 -> 0 | E30: ='Personal + Additional Incomes'!J15 -> 0 | F30: ='Personal + Additional Incomes'!J16 -> 0 | L30: Tax Rates effective 01/04/2021 | U30: 173 | V30: WHANGAREI | W30: KAIATEA | X30: Group5
L31: Tax Boundary | M31: Tax Due | N31: Excess % | U31: 174 | V31: WHANGAREI | W31: MCLEOD BAY | X31: Group5
B32: Tax Boundary | C32: =VLOOKUP(C30,$L$31:$N$36,1) -> 0 | D32: =VLOOKUP(D30,$L$31:$N$36,1) -> 0 | E32: =VLOOKUP(E30,$L$31:$N$36,1) -> 0 | F32: =VLOOKUP(F30,$L$31:$N$36,1) -> 0 | L32: 0 | M32: 0 | N32: 0.105 | U32: 175 | V32: WHANGAREI | W32: TAHERE | X32: Group5
B33: Tax Due on Boundary | C33: =VLOOKUP(C30,$L$31:$N$36,2) -> 0 | D33: =VLOOKUP(D30,$L$31:$N$36,2) -> 0 | E33: =VLOOKUP(E30,$L$31:$N$36,2) -> 0 | F33: =VLOOKUP(F30,$L$31:$N$36,2) -> 0 | L33: 14000 | M33: =M32+N32*(L33-L32) -> 1470 | N33: 0.175 | U33: 176 | V33: WHANGAREI | W33: NGARARATUNUA | X33: Group5
B34: % Due on Excess | C34: =VLOOKUP(C30,$L$31:$N$36,3) -> 0.105 | D34: =VLOOKUP(D30,$L$31:$N$36,3) -> 0.105 | E34: =VLOOKUP(E30,$L$31:$N$36,3) -> 0.105 | F34: =VLOOKUP(F30,$L$31:$N$36,3) -> 0.105 | L34: 48000 | M34: =M33+N33*(L34-L33) -> 7420 | N34: 0.3 | U34: 178 | V34: WHANGAREI | W34: MUNGAKARAMEA | X34: Group5
L35: 70000 | M35: =M34+N34*(L35-L34) -> 14020 | N35: 0.33 | U35: 179 | V35: WHANGAREI | W35: MAUNGATAPERE | X35: Group5
B36: Tax due on Income: | C36: =IF(C30>0,C33+(C30-C32)*C34,0) -> 0 | D36: =IF(D30>0,D33+(D30-D32)*D34,0) -> 0 | E36: =IF(E30>0,E33+(E30-E32)*E34,0) -> 0 | F36: =IF(F30>0,F33+(F30-F32)*F34,0) -> 0 | L36: 180000 | M36: =M35+N35*(L36-L35) -> 50320 | N36: 0.39 | U36: 181 | V36: HIKURANGI | W36: OPUAWHANGA | X36: Group5
B37: KS** | C37: 0 | D37: 0 | E37: 0 | F37: 0 | G37: ** % as selected caluclator page | U37: 182 | V37: HIKURANGI | W37: HUKERENUI | X37: Group5
B38: ACC* | C38: =+IF(C30>139384,2132.57,C30*0.0153) -> 0 | D38: =+IF(D30>139384,2132.57,D30*0.0153) -> 0 | E38: 0 | F38: =+IF(F30>139384,2132.57,F30*0.0153) -> 0 | G38: *ACC tops out at 2132.57 for income over 139,384 | U38: 184 | V38: HIKURANGI | W38: WHANGARURU | X38: Group5
B39: NET INCOME (per annum): | C39: =C30-C36-C37-C38 -> 0 | D39: =D30-D36-D37-D38 -> 0 | E39: =E30-E36-E37-E38 -> 0 | F39: =F30-F36-F37-F38 -> 0 | U39: 185 | V39: KAMO | W39: MATARAU | X39: Group5
U40: 192 | V40: ONERAHI | W40: RURUWAI | X40: Group5
A41: % Scaling applied to income types | U41: 193 | V41: WAIOTIRA | W41: WAIOTIRA | X41: Group5
A42: Overtime / Shift Allowance | B42: Bonus | C42: Commission | D42: Investment Income | E42: Casual / Second Job | F42: Child Support/ Maintenance | G42: Working For Families, Company Car Addback | H42: Rental Income | U42: 200 | V42: OPUA | W42: OPUA | X42: Group3
A43: 0.8 | B43: 0.8 | C43: 0.8 | D43: 0.8 | E43: 0.8 | F43: 0.8 | G43: 1 | H43: 0.9 | U43: 200 | V43: PAIHIA | W43: PAIHIA | X43: Group3
U44: 202 | V44: RUSSELL | W44: RUSSELL | X44: Group3
A45: Other mortgage lending default term calculation | U45: 204 | V45: HARURU | W45: HARURU | X45: Group3
U46: 204 | V46: PAIHIA | W46: PAIHIA | X46: Group3
U47: 210 | V47: KAWAKAWA | W47: KAWAKAWA | X47: Group4
U48: 211 | V48: MOEREWA | W48: MOEREWA | X48: Group4
U49: 230 | V49: KERIKERI | W49: KERIKERI | X49: Group3
U50: 272 | V50: RUSSELL | W50: FRENCHMANS SWAMP | X50: Group3
U51: 281 | V51: KAWAKAWA | W51: POKERE | X51: Group4
U52: 282 | V52: KAWAKAWA | W52: KAWAKAWA | X52: Group4
U53: 283 | V53: KAWAKAWA | W53: WAIKARE | X53: Group4
B54: Self Employed Assessment | U54: 293 | V54: KERIKERI | W54: KERIKERI | X54: Group3
A55: Current Year | B55: Total income less Depreciation | C55: Max Depreciation that can be used | U55: 294 | V55: KERIKERI | W55: PURERUA | X55: Group3
A56: Applicant1 | B56: ='Personal + Additional Incomes'!L25 -> 0 | C56: =SUM(B56*20%) -> 0 | U56: 295 | V56: KERIKERI | W56: TE WHAU | X56: Group3
A57: Applicant 2 | B57: ='Personal + Additional Incomes'!L26 -> 0 | C57: =SUM(B57*20%) -> 0 | U57: 310 | V57: DARGAVILLE | W57: DARGAVILLE | X57: Group4
A58: Applicant 3 | B58: ='Personal + Additional Incomes'!L27 -> 0 | C58: 0 | U58: 370 | V58: DARGAVILLE | W58: DARGAVILLE | X58: Group5
A59: Applicant 4 | B59: ='Personal + Additional Incomes'!L28 -> 0 | C59: 0 | U59: 371 | V59: DARGAVILLE | W59: DARGAVILLE | X59: Group5
U60: 372 | V60: DARGAVILLE | W60: DARGAVILLE | X60: Group5
A61: Prior Year | D61: 120% rule | U61: 373 | V61: DARGAVILLE | W61: DARGAVILLE | X61: Group5
A62: Applicant1 | B62: ='Personal + Additional Incomes'!L35 -> 0 | C62: 0 | D62: =SUM(B62*120%) -> 0 | U62: 374 | V62: DARGAVILLE | W62: DARGAVILLE | X62: Group5
A63: Applicant 2 | B63: ='Personal + Additional Incomes'!L36 -> 0 | C63: 0 | D63: =SUM(B63*120%) -> 0 | U63: 376 | V63: DARGAVILLE | W63: DARGAVILLE | X63: Group5
A64: Applicant 3 | B64: ='Personal + Additional Incomes'!L37 -> 0 | C64: 0 | D64: =SUM(B64*120%) -> 0 | U64: 377 | V64: DARGAVILLE | W64: DARGAVILLE | X64: Group5
A65: Applicant 4 | B65: ='Personal + Additional Incomes'!L38 -> 0 | C65: 0 | D65: =SUM(B65*120%) -> 0 | U65: 379 | V65: DARGAVILLE | W65: DARGAVILLE | X65: Group5
U66: 381 | V66: TANGITERORIA | W66: TANGITERORIA | X66: Group5
U67: 391 | V67: TE KOPURU | W67: TE KOPURU | X67: Group5
U68: 405 | V68: KAIKOHE | W68: KAIKOHE | X68: Group3
U69: 410 | V69: KAITAIA | W69: KAITAIA | X69: Group3
U70: 420 | V70: CABLE BAY | W70: CABLE BAY | X70: Group3
U71: 420 | V71: COOPERS BEACH | W71: COOPERS BEACH | X71: Group3
U72: 420 | V72: MANGONUI | W72: MANGONUI | X72: Group3
U73: 420 | V73: TAIPA | W73: TAIPA | X73: Group3
U74: 472 | V74: KAIKOHE | W74: KAIKOHE | X74: Group3
U75: 473 | V75: KAIKOHE | W75: OMAPERE | X75: Group3
U76: 474 | V76: KAIKOHE | W76: KAIKOHE | X76: Group3
U77: 475 | V77: OKAIHAU | W77: OKAIHAU | X77: Group5
U78: 476 | V78: OKAIHAU | W78: OKAIHAU | X78: Group5
U79: 478 | V79: KAEO | W79: KAEO | X79: Group4
U80: 479 | V80: KAEO | W80: KAEO | X80: Group4
U81: 481 | V81: KAITAIA | W81: AHIPARA | X81: Group4
U82: 482 | V82: KAITAIA | W82: KAITAIA | X82: Group4
U83: 483 | V83: KAITAIA | W83: KAITAIA | X83: Group4
U84: 484 | V84: KAITAIA | W84: KAITAIA | X84: Group4
U85: 486 | V85: AWANUI | W85: AWANUI | X85: Group5
U86: 491 | V86: KOHUKOHU | W86: KOHUKOHU | X86: Group5
U87: 492 | V87: KOHUKOHU | W87: KOHUKOHU | X87: Group5
U88: 494 | V88: MANGONUI | W88: MANGONUI | X88: Group4
U89: 496 | V89: BROADWOOD | W89: BROADWOOD | X89: Group5
U90: 505 | V90: MANGAWHAI | W90: MANGAWHAI | X90: Group3
U91: 505 | V91: MANGAWHAI | W91: MANGAWHAI HEADS | X91: Group3
U92: 510 | V92: WAIPU | W92: WAIPU | X92: Group3
U93: 520 | V93: MAUNGATUROTO | W93: MAUNGATUROTO | X93: Group4
U94: 530 | V94: RUAWAI | W94: RUAWAI | X94: Group4
U95: 571 | V95: PAPAROA | W95: PAPAROA | X95: Group4
U96: 573 | V96: KAIWAKA | W96: KAIWAKA | X96: Group4
U97: 582 | V97: WAIPU | W97: WAIPU | X97: Group3
U98: 583 | V98: MAUNGATUROTO | W98: MAUNGATUROTO | X98: Group4
U99: 587 | V99: MAUNGATUROTO | W99: MAUNGATUROTO | X99: Group4
U100: 588 | V100: MAUNGATUROTO | W100: MAUNGATUROTO | X100: Group4
U101: 589 | V101: MAUNGATUROTO | W101: MAUNGATUROTO | X101: Group4
U102: 591 | V102: RUAWAI | W102: RUAWAI | X102: Group4
U103: 592 | V103: RUAWAI | W103: RUAWAI | X103: Group4
U104: 593 | V104: MATAKOHE | W104: MATAKOHE | X104: Group4
U105: 594 | V105: MATAKOHE | W105: MATAKOHE | X105: Group4
U106: 600 | V106: AUCKLAND | W106: AVONDALE | X106: Group1
U107: 600 | V107: AUCKLAND | W107: BLOCKHOUSE BAY | X107: Group1
U108: 600 | V108: AUCKLAND | W108: MOUNT ALBERT | X108: Group1
U109: 600 | V109: AUCKLAND | W109: MOUNT ROSKILL | X109: Group1
U110: 600 | V110: AUCKLAND | W110: NEW LYNN | X110: Group1
U111: 600 | V111: AUCKLAND | W111: NEW WINDSOR | X111: Group1
U112: 600 | V112: AUCKLAND | W112: TITIRANGI | X112: Group2
U113: 602 | V113: AUCKLAND | W113: GLEN EDEN | X113: Group2
U114: 602 | V114: AUCKLAND | W114: GLENDENE | X114: Group2
U115: 602 | V115: AUCKLAND | W115: KELSTON | X115: Group2
U116: 602 | V116: AUCKLAND | W116: ORATIA | X116: Group2
U117: 602 | V117: AUCKLAND | W117: TE ATATU SOUTH | X117: Group2
U118: 604 | V118: AUCKLAND | W118: CORNWALLIS | X118: Group2
U119: 604 | V119: AUCKLAND | W119: GLEN EDEN | X119: Group2
U120: 604 | V120: AUCKLAND | W120: GREEN BAY | X120: Group2
U121: 604 | V121: AUCKLAND | W121: HUIA | X121: Group2
U122: 604 | V122: AUCKLAND | W122: LAINGHOLM | X122: Group2
U123: 604 | V123: AUCKLAND | W123: ORATIA | X123: Group2
U124: 604 | V124: AUCKLAND | W124: PARAU | X124: Group2
U125: 604 | V125: AUCKLAND | W125: TITIRANGI | X125: Group2
U126: 604 | V126: AUCKLAND | W126: WAIATARUA | X126: Group2
U127: 610 | V127: AUCKLAND | W127: HENDERSON | X127: Group2
U128: 610 | V128: AUCKLAND | W128: MASSEY | X128: Group2
U129: 610 | V129: AUCKLAND | W129: TE ATATU PENINSULA | X129: Group2
U130: 610 | V130: AUCKLAND | W130: TE ATATU SOUTH | X130: Group2
U131: 612 | V131: AUCKLAND | W131: HENDERSON | X131: Group2
U132: 612 | V132: AUCKLAND | W132: HENDERSON VALLEY | X132: Group2
U133: 612 | V133: AUCKLAND | W133: RANUI | X133: Group2
U134: 612 | V134: AUCKLAND | W134: SUNNYVALE | X134: Group2
U135: 612 | V135: AUCKLAND | W135: SWANSON | X135: Group2
U136: 612 | V136: AUCKLAND | W136: WAIATARUA | X136: Group2
U137: 614 | V137: AUCKLAND | W137: SUNNYSIDE | X137: Group2
U138: 614 | V138: AUCKLAND | W138: HENDERSON | X138: Group2
U139: 614 | V139: AUCKLAND | W139: HENDERSON VALLEY | X139: Group2
U140: 614 | V140: AUCKLAND | W140: MASSEY | X140: Group2
U141: 614 | V141: AUCKLAND | W141: SUNNYSIDE | X141: Group2
U142: 614 | V142: AUCKLAND | W142: SWANSON | X142: Group2
U143: 614 | V143: AUCKLAND | W143: WAITAKERE | X143: Group2
U144: 618 | V144: AUCKLAND | W144: HERALD ISLAND | X144: Group2
U145: 618 | V145: AUCKLAND | W145: HOBSONVILLE | X145: Group2
U146: 618 | V146: AUCKLAND | W146: WEST HARBOUR | X146: Group2
U147: 618 | V147: AUCKLAND | W147: WHENUAPAI | X147: Group2
U148: 620 | V148: AUCKLAND | W148: CAMPBELLS BAY | X148: Group1
U149: 620 | V149: AUCKLAND | W149: CASTOR BAY | X149: Group1
U150: 620 | V150: AUCKLAND | W150: FORREST HILL | X150: Group1
U151: 620 | V151: AUCKLAND | W151: MILFORD | X151: Group1
U152: 620 | V152: AUCKLAND | W152: SUNNYNOOK | X152: Group1
U153: 620 | V153: AUCKLAND | W153: TAKAPUNA | X153: Group1
U154: 622 | V154: AUCKLAND | W154: BAYSWATER | X154: Group1
U155: 622 | V155: AUCKLAND | W155: BELMONT | X155: Group1
U156: 622 | V156: AUCKLAND | W156: HAURAKI | X156: Group1
U157: 622 | V157: AUCKLAND | W157: NARROW NECK | X157: Group1
U158: 622 | V158: AUCKLAND | W158: TAKAPUNA | X158: Group1
U159: 624 | V159: AUCKLAND | W159: DEVONPORT | X159: Group1
U160: 624 | V160: AUCKLAND | W160: NARROW NECK | X160: Group1
U161: 624 | V161: AUCKLAND | W161: STANLEY POINT | X161: Group1
U162: 626 | V162: AUCKLAND | W162: BEACH HAVEN | X162: Group1
U163: 626 | V163: AUCKLAND | W163: BIRKDALE | X163: Group1
U164: 626 | V164: AUCKLAND | W164: BIRKENHEAD | X164: Group1
U165: 626 | V165: AUCKLAND | W165: CHATSWOOD | X165: Group1
U166: 626 | V166: AUCKLAND | W166: HILLCREST | X166: Group1
U167: 626 | V167: AUCKLAND | W167: NORTHCOTE | X167: Group1
U168: 627 | V168: AUCKLAND | W168: BIRKENHEAD | X168: Group1
U169: 627 | V169: AUCKLAND | W169: GLENFIELD | X169: Group1
U170: 627 | V170: AUCKLAND | W170: HILLCREST | X170: Group1
U171: 627 | V171: AUCKLAND | W171: NORTHCOTE | X171: Group1
U172: 627 | V172: AUCKLAND | W172: NORTHCOTE POINT | X172: Group1
U173: 627 | V173: AUCKLAND | W173: TOTARA VALE | X173: Group1
U174: 627 | V174: AUCKLAND | W174: WAIRAU VALLEY | X174: Group1
U175: 629 | V175: AUCKLAND | W175: HILLCREST | X175: Group1
U176: 629 | V176: AUCKLAND | W176: BAYVIEW | X176: Group1
U177: 629 | V177: AUCKLAND | W177: GLENFIELD | X177: Group1
U178: 629 | V178: AUCKLAND | W178: HILLCREST | X178: Group1
U179: 629 | V179: AUCKLAND | W179: TOTARA VALE | X179: Group1
U180: 629 | V180: AUCKLAND | W180: WAIRAU VALLEY | X180: Group1
U181: 630 | V181: AUCKLAND | W181: BROWNS BAY | X181: Group1
U182: 630 | V182: AUCKLAND | W182: CAMPBELLS BAY | X182: Group1
U183: 630 | V183: AUCKLAND | W183: LONG BAY | X183: Group1
U184: 630 | V184: AUCKLAND | W184: MAIRANGI BAY | X184: Group1
U185: 630 | V185: AUCKLAND | W185: MURRAYS BAY | X185: Group1
U186: 630 | V186: AUCKLAND | W186: NORTHCROSS | X186: Group1
U187: 630 | V187: AUCKLAND | W187: OTEHA | X187: Group1
U188: 630 | V188: AUCKLAND | W188: PINEHILL | X188: Group1
U189: 630 | V189: AUCKLAND | W189: ROTHESAY BAY | X189: Group1
U190: 630 | V190: AUCKLAND | W190: SUNNYNOOK | X190: Group1
U191: 630 | V191: AUCKLAND | W191: TORBAY | X191: Group1
U192: 630 | V192: AUCKLAND | W192: WAIAKE | X192: Group1
U193: 630 | V193: AUCKLAND | W193: WINDSOR PARK | X193: Group1
U194: 632 | V194: AUCKLAND | W194: ALBANY | X194: Group1
U195: 632 | V195: AUCKLAND | W195: ALBANY HEIGHTS | X195: Group1
U196: 632 | V196: AUCKLAND | W196: BROWNS BAY | X196: Group1
U197: 632 | V197: AUCKLAND | W197: FAIRVIEW HEIGHTS | X197: Group1
U198: 632 | V198: AUCKLAND | W198: GREENHITHE | X198: Group1
U199: 632 | V199: AUCKLAND | W199: LUCAS HEIGHTS | X199: Group1
U200: 632 | V200: AUCKLAND | W200: NORTHCROSS | X200: Group1
... 1872 more rows

Sheet Postcodes (hidden)
